bitfinex/quotes_SOLUSD_20251127
["timestamp","ask_amount","ask_price","bid_price","bid_amount"]
[1764259992727,0.69,142.01,141.98,7.04307876]
[1764259995140,0.69,142.01,141.98,1.93699582]
[1764259995535,3.79,142.01,141.98,1.93699582]
[1764259996343,3.1,142.01,141.98,1.93699582]
[1764259996538,0.69,142.0,141.99,7.04274948]
[1764259997836,3.1,142.03,141.99,9.6597453]
[1764259998152,3.79,142.03,142.01,1.93699582]
[1764259998818,0.69,142.03,142.01,1.93699582]
[1764259999037,3.1,142.03,142.01,1.93699582]
[1764259999744,3.1,142.03,142.02,8.97825761]
[1764259999940,0.69,142.05,142.02,8.97825761]
[1764260000121,3.79,142.05,142.02,26.58141209]
[1764260000521,0.69,142.04,142.02,8.97825761]
[1764260001049,3.1,142.05,142.03,1.93699582]
[1764260001417,3.1,142.05,142.02,25.32441627]
[1764260001623,3.1,142.06,142.04,1.93699582]
[1764260001818,3.1,142.06,142.05,7.03977472]
[1764260002226,0.69,142.08,142.05,26.57620735]
[1764260002435,3.1,142.08,142.07,1.93699582]
[1764260002742,3.1,142.08,142.06,1.93699582]
[1764260002924,0.69,142.08,142.06,1.93699582]
[1764260003127,3.1,142.09,142.06,1.93699582]
[1764260003439,3.99,142.1,142.07,1.93699582]
[1764260003826,3.99,142.1,142.08,7.03828828]
[1764260005152,0.89,142.1,142.08,7.03828828]
[1764260005354,3.99,142.1,142.08,7.03828828]
[1764260007144,0.69,142.09,142.07,7.03860446]
[1764260007471,2.62699582,142.09,142.03,20.21855695]
[1764260007639,1.93699582,142.07,142.02,7.04126179]
[1764260007837,3.1,142.06,142.02,7.04126179]
[1764260008162,5.72699582,142.06,142.02,7.04126179]
[1764260008338,0.69,142.05,142.01,7.04175762]
[1764260008657,0.69,142.05,142.01,8.97875344]
[1764260010454,0.69,142.05,142.01,26.58314749]
[1764260010855,3.1,142.05,142.03,1.93699582]
[1764260011258,3.1,142.05,142.04,1.93699582]
[1764260012447,3.1,142.05,142.04,8.97726616]
[1764260013050,3.1,142.05,142.04,9.65726616]
[1764260013362,3.79,142.08,142.04,27.25794202]
[1764260013586,3.79,142.08,142.05,1.93699582]
[1764260014061,3.99,142.1,142.07,1.93699582]
[1764260014261,3.99,142.1,142.08,1.93699582]
[1764260014563,0.89,142.1,142.09,7.03779294]
[1764260015446,0.2,142.1,142.09,8.97478876]
[1764260016868,0.2,142.1,142.09,9.65478876]
[1764260017949,0.2,142.1,142.09,8.97478876]
[1764260018865,0.2,142.1,142.09,9.65478876]
[1764260020552,0.2,142.1,142.09,8.97478876]
[1764260022456,1e-08,142.1,142.09,9.65478876]
[1764260023558,1e-08,142.1,142.09,18.74905682]
[1764260023966,1e-08,142.1,142.09,20.24653358]
[1764260024561,1e-08,142.1,142.09,22.3075726]
[1764260024983,1e-08,142.1,142.09,38.6164366]
[1764260025185,1e-08,142.1,142.09,7.03779294]
[1764260025488,1e-08,142.1,142.09,8.13689526]
[1764260025653,1e-08,142.1,142.09,25.12575926]
[1764260026459,1e-08,142.1,142.09,24.44575926]
[1764260026873,1e-08,142.1,142.09,23.34665694]
[1764260027067,1e-08,142.1,142.09,24.44575926]
[1764260029485,1e-08,142.1,142.09,25.12575926]
[1764260031465,1e-08,142.1,142.09,35.31912964]
[1764260031665,1e-08,142.11,142.1,9.77426806]
[1764260032189,1e-08,142.11,142.1,11.9724727]
[1764260033395,1e-08,142.11,142.1,15.97350942]
[1764260033599,1e-08,142.11,142.1,26.11080709]
[1764260034178,0.2,142.13,142.12,25.40313206]
[1764260034369,1e-08,142.13,142.12,26.50223438]
[1764260034580,1e-08,142.14,142.13,8.80994492]
[1764260034787,1e-08,142.14,142.13,10.58904724]
[1764260035386,0.2,142.16,142.15,25.40313206]
[1764260035591,0.2,142.16,142.15,33.53705675]
[1764260035776,0.2,142.16,142.15,34.21705675]
[1764260036689,0.2,142.18,142.15,56.20052195]
[1764260036991,0.2,142.18,142.17,1.09910232]
[1764260037192,0.2,142.18,142.17,10.19337038]
[1764260037389,0.2,142.18,142.17,10.87337038]
[1764260037766,0.2,142.18,142.17,17.90720311]
[1764260037991,0.2,142.21,142.17,75.05735789]
[1764260038194,0.2,142.21,142.2,5.4955116]
[1764260038366,0.2,142.26,142.23,16.308864]
[1764260038566,0.1,142.33,142.25,14.30545652]
[1764260038765,0.1,142.33,142.28,16.308864]
[1764260038766,0.78,142.33,142.28,16.308864]
[1764260038992,0.78,142.33,142.26,3.38432314]
[1764260038993,0.78,142.33,142.24,3.1]
[1764260039223,0.78,142.33,142.23,0.28432314]
[1764260039224,0.78,142.33,142.28,4.39640928]
[1764260039492,0.1,142.33,142.32,2.19820464]
[1764260039691,0.1,142.33,142.31,16.308864]
[1764260039892,0.1,142.33,142.32,21.61619899]
[1764260040100,0.1,142.33,142.32,22.29619899]
[1764260040270,0.1,142.35,142.34,16.308864]
[1764260040594,0.1,142.35,142.34,31.10787824]
[1764260040802,0.1,142.35,142.34,31.78787824]
[1764260041000,0.1,142.38,142.37,16.308864]
[1764260041372,0.1,142.38,142.36,16.308864]
[1764260041797,0.78,142.38,142.37,2.85237309]
[1764260041989,0.1,142.38,142.37,2.85237309]
[1764260042297,0.1,142.45,142.4,25.11880892]
[1764260042298,1e-08,142.44,142.4,25.11880892]
[1764260042496,1e-08,142.44,142.42,16.59318714]
[1764260042704,1e-08,142.44,142.43,11.94664115]
[1764260042905,1e-08,142.44,142.43,15.37901424]
[1764260043419,1e-08,142.44,142.43,22.28123709]
[1764260043884,1e-08,142.44,142.43,29.30222985]
[1764260044087,1e-08,142.44,142.43,29.88222985]
[1764260044291,1e-08,142.44,142.43,23.6141799]
[1764260044491,1e-08,142.44,142.43,41.828871]
[1764260044682,1e-08,142.45,142.44,9.38994492]
[1764260044890,1e-08,142.45,142.44,15.0946911]
[1764260045097,1e-08,142.45,142.44,22.28123709]
[1764260045281,1e-08,142.45,142.44,22.01361018]
[1764260045483,1e-08,142.45,142.44,19.16123709]
[1764260045877,1e-08,142.45,142.44,32.42363191]
[1764260046077,1e-08,142.45,142.44,41.82837809]
[1764260046488,1e-08,142.45,142.44,25.51951409]
[1764260047290,2.85237309,142.6,142.47,16.308864]
[1764260047613,2.85237309,142.6,142.47,19.428864]
[1764260047614,0.68,142.53,142.47,19.428864]
[1764260047910,0.68,142.53,142.48,24.56436582]
[1764260048113,0.68,142.53,142.48,7.01804925]
[1764260048279,0.68,142.53,142.43,0.58]
[1764260048280,2.85237309,142.52,142.43,0.58]
[1764260048484,2.85237309,142.5,142.44,3.12]
[1764260048717,2.85237309,142.5,142.44,16.308864]
[1764260048879,2.85237309,142.48,142.41,24.57628228]
[1764260049204,0.68,142.49,142.42,16.308864]
[1764260049396,0.68,142.49,142.41,27.69628228]
[1764260049397,0.68,142.51,142.48,2.85237309]
[1764260049578,0.68,142.51,142.5,2.85237309]
[1764260049777,16.308864,142.55,142.49,2.85237309]
[1764260050093,0.68,142.5,142.49,2.85237309]
[1764260050877,16.308864,142.55,142.49,6.28474618]
[1764260050878,0.71,142.55,142.49,6.28474618]
[1764260051082,0.71,142.54,142.49,16.888864]
[1764260051304,0.71,142.54,142.49,16.308864]
[1764260051509,0.71,142.54,142.5,2.85237309]
[1764260051896,0.71,142.54,142.53,2.85237309]
[1764260052094,0.71,142.54,142.51,7.01705143]
[1764260052303,0.71,142.54,142.53,2.85237309]
[1764260052806,0.71,142.56,142.51,7.01705143]
[1764260053010,0.71,142.56,142.55,2.85237309]
[1764260053213,0.71,142.56,142.53,2.85237309]
[1764260053393,0.71,142.56,142.54,2.85237309]
[1764260053595,0.71,142.56,142.5,10.13750644]
[1764260053792,0.71,142.56,142.54,2.85237309]
[1764260054111,0.71,142.56,142.53,7.01572744]
[1764260054314,0.71,142.56,142.54,2.85237309]
[1764260054892,2.83071199,142.58,142.55,2.85237309]
[1764260055116,2.83071199,142.58,142.57,2.85237309]
[1764260055321,2.83071199,142.58,142.55,2.85237309]
[1764260055322,2.83071199,142.58,142.56,16.308864]
[1764260055818,2.83071199,142.58,142.55,6.55237309]
[1764260055819,0.68,142.57,142.52,23.325386]
[1764260056210,0.68,142.57,142.52,16.308864]
[1764260056418,0.68,142.57,142.55,2.85237309]
[1764260056592,0.68,142.57,142.54,2.85237309]
[1764260057124,3.53237309,142.57,142.52,2.85237309]
[1764260057324,10.54647318,142.57,142.52,2.85237309]
[1764260057532,0.68,142.56,142.52,2.85237309]
[1764260057828,0.68,142.56,142.49,7.01803635]
[1764260057829,0.68,142.56,142.49,40.87199123]
[1764260058034,0.68,142.55,142.5,2.85237309]
[1764260058216,0.68,142.55,142.54,2.85237309]
[1764260058414,2.83071199,142.58,142.53,16.308864]
[1764260058614,0.68,142.55,142.53,16.308864]
[1764260058813,0.68,142.55,142.53,19.16123709]
[1764260059120,0.68,142.57,142.54,2.85237309]
[1764260059324,0.68,142.57,142.55,2.85237309]
[1764260059525,0.68,142.57,142.54,2.85237309]
[1764260059900,0.68,142.57,142.54,10.08869304]
[1764260060102,0.68,142.57,142.55,3.07333884]
[1764260060426,2.83071199,142.58,142.56,3.07333884]
[1764260060610,3.51071199,142.58,142.56,3.07333884]
[1764260061328,0.68,142.57,142.55,3.07333884]
[1764260061505,0.68,142.57,142.54,7.0153542]
[1764260061709,0.68,142.57,142.52,17.54116117]
[1764260061710,0.68,142.57,142.52,3.07333884]
[1764260061913,0.68,142.57,142.47,8.80994492]
[1764260061914,0.96432314,142.57,142.47,8.80994492]
[1764260062122,7.01459034,142.56,142.47,8.80994492]
[1764260062317,3.07333884,142.55,142.5,3.07333884]
[1764260062523,3.07333884,142.54,142.49,3.07333884]
[1764260062733,0.68,142.54,142.53,3.07333884]
[1764260063124,0.68,142.54,142.5,16.308864]
[1764260063331,0.68,142.54,142.52,3.07333884]
[1764260063532,0.68,142.54,142.5,3.07333884]
[1764260063735,3.75333884,142.54,142.49,3.07333884]
[1764260064040,0.68,142.54,142.49,10.09109369]
[1764260064238,0.68,142.53,142.48,10.09178134]
[1764260064537,0.68,142.53,142.49,3.07333884]
[1764260064731,0.68,142.53,142.47,3.07333884]
[1764260064922,3.75333884,142.53,142.48,3.07333884]
[1764260065312,0.68,142.52,142.45,16.308864]
[1764260065530,3.07333884,142.51,142.46,3.07333884]
[1764260065733,3.07333884,142.51,142.45,16.308864]
[1764260065934,0.68,142.5,142.45,16.308864]
[1764260066128,10.77089339,142.5,142.44,3.07333884]
[1764260066350,3.07333884,142.49,142.44,10.09373938]
[1764260066656,3.75333884,142.48,142.42,3.07333884]
[1764260067036,0.68,142.47,142.42,3.07333884]
[1764260067226,0.68,142.47,142.41,16.308864]
[1764260067431,3.75333884,142.47,142.41,16.308864]
[1764260067756,3.07333884,142.48,142.41,16.308864]
[1764260067925,0.68,142.46,142.4,9.09426806]
[1764260068124,10.77296041,142.46,142.41,3.07333884]
[1764260068320,10.77296041,142.46,142.37,7.02362742]
[1764260068321,3.07333884,142.44,142.37,7.02362742]
[1764260068545,3.07333884,142.42,142.37,10.09696626]
[1764260068748,3.07333884,142.4,142.35,3.07333884]
[1764260068957,8.80994492,142.43,142.34,10.0987709]
[1764260068958,3.75333884,142.39,142.34,10.0987709]
[1764260069137,3.75333884,142.39,142.34,27.66235106]
[1764260069336,0.68,142.38,142.35,3.07333884]
[1764260069664,3.75333884,142.41,142.36,3.07333884]
[1764260069965,16.308864,142.42,142.35,3.07333884]
[1764260069966,3.75333884,142.4,142.35,3.07333884]
[1764260070134,0.68,142.4,142.35,3.07333884]
[1764260070452,0.68,142.39,142.35,27.6604805]
[1764260070831,0.68,142.41,142.37,3.07333884]
[1764260071049,0.68,142.41,142.38,3.07333884]
[1764260071244,0.68,142.41,142.37,3.07333884]
[1764260071546,0.68,142.41,142.38,3.07333884]
[1764260071772,0.68,142.41,142.36,16.308864]
[1764260071948,0.68,142.41,142.38,3.07333884]
[1764260072150,0.68,142.41,142.39,3.07333884]
[1764260072368,0.68,142.41,142.38,3.07333884]
[1764260073534,0.68,142.43,142.39,3.07333884]
[1764260073736,0.68,142.43,142.41,3.07333884]
[1764260074259,0.68,142.43,142.41,10.09518541]
[1764260074828,0.68,142.43,142.41,3.07333884]
[1764260075960,3.75333884,142.43,142.38,23.33232235]
[1764260076162,0.68,142.43,142.38,26.40566119]
[1764260076366,0.68,142.42,142.39,3.07333884]
[1764260077161,3.07333884,142.41,142.37,7.02378753]
[1764260077363,3.75333884,142.42,142.37,7.02378753]
[1764260077532,3.75333884,142.41,142.37,7.02378753]
[1764260077865,3.75333884,142.41,142.34,33.87208124]
[1764260077866,3.07333884,142.4,142.35,10.09827737]
[1764260078051,3.75333884,142.4,142.35,7.02493853]
[1764260078256,0.68,142.39,142.35,27.66062369]
[1764260078460,0.68,142.39,142.35,10.09827737]
[1764260078673,0.68,142.39,142.35,7.02493853]
[1764260078842,0.68,142.39,142.31,44.08446245]
[1764260078843,3.07333884,142.36,142.31,17.56685686]
[1764260079162,3.07333884,142.36,142.31,20.6401957]
[1764260079373,0.68,142.35,142.31,20.6401957]
[1764260079663,3.07333884,142.34,142.29,0.2]
[1764260079959,3.07333884,142.32,142.29,7.22771885]
[1764260080167,0.66,142.31,142.29,7.22771885]
[1764260080667,0.66,142.31,142.29,7.2278821]
[1764260080961,0.66,142.31,142.29,0.2]
[1764260081335,3.73333884,142.31,142.29,0.2]
[1764260081536,0.66,142.31,142.29,0.2]
[1764260081771,0.66,142.3,142.29,7.22790076]
[1764260081943,18.95475753,142.36,142.29,7.22790076]
[1764260082144,0.66,142.31,142.29,7.22790076]
[1764260082760,3.73333884,142.33,142.29,7.22790076]
[1764260083067,0.66,142.32,142.29,7.22790076]
[1764260083364,0.66,142.32,142.29,24.79765267]
[1764260083877,0.66,142.34,142.29,27.87099151]
[1764260084169,0.66,142.33,142.29,27.87099151]
[1764260084537,7.89317602,142.35,142.3,4.77317602]
[1764260084763,8.55317602,142.35,142.3,4.77317602]
[1764260084965,0.66,142.34,142.3,4.77317602]
[1764260085446,0.66,142.34,142.29,29.57082869]
[1764260087140,0.66,142.34,142.29,24.79765267]
[1764260087467,0.66,142.34,142.3,4.77317602]
[1764260088349,0.66,142.34,142.31,29.36737178]
[1764260088856,19.428864,142.38,142.32,0.58]
[1764260089057,8.80994492,142.4,142.34,16.308864]
[1764260089058,0.66,142.4,142.34,16.308864]
[1764260089263,0.66,142.4,142.38,4.77317602]
[1764260089575,0.66,142.4,142.39,4.77317602]
[1764260090470,0.66,142.4,142.39,11.79614111]
[1764260090978,0.66,142.4,142.39,4.77317602]
[1764260091161,0.66,142.4,142.39,11.79614111]
[1764260092157,0.66,142.42,142.39,11.79614111]
[1764260094165,0.66,142.42,142.4,4.77317602]
[1764260094567,0.66,142.42,142.41,7.02197879]
[1764260094769,8.80994492,142.5,142.41,11.79515481]
[1764260095078,4.77317602,142.47,142.41,11.79515481]
[1764260095488,0.66,142.46,142.41,11.79515481]
[1764260095658,4.77317602,142.45,142.4,11.79553022]
[1764260095984,8.80994492,142.44,142.37,22.33272921]
[1764260096173,3.14,142.43,142.38,11.7965759]
[1764260096356,3.8,142.43,142.39,4.77317602]
[1764260096555,0.66,142.42,142.39,11.79605624]
[1764260097776,0.66,142.42,142.39,7.02288022]
[1764260097986,0.66,142.42,142.39,11.79605624]
[1764260100069,0.66,142.42,142.38,7.02326234]
[1764260100868,12.73907254,142.42,142.36,4.77317602]
[1764260101290,5.43317602,142.41,142.36,4.77317602]
[1764260101767,0.66,142.4,142.36,4.77317602]
[1764260101970,0.66,142.4,142.37,4.77317602]
[1764260102160,9.75426806,142.42,142.38,4.77317602]
[1764260102365,0.66,142.41,142.37,0.58]
[1764260102586,3.12,142.43,142.37,0.58]
[1764260102789,3.12,142.43,142.41,4.77317602]
[1764260103091,76.99999999,142.52,142.42,4.77317602]
[1764260103293,7.67705143,142.51,142.44,4.77317602]
[1764260103497,4.77317602,142.5,142.44,4.77317602]
[1764260103703,4.77317602,142.49,142.44,4.77317602]
[1764260103994,0.66,142.49,142.45,7.02000702]
[1764260104164,0.66,142.48,142.45,11.79318304]
[1764260104372,7.91317602,142.51,142.46,4.77317602]
[1764260104571,0.66,142.5,142.47,4.77317602]
[1764260105392,0.66,142.5,142.45,7.02000702]
[1764260105691,0.66,142.5,142.46,4.77317602]
[1764260106187,0.66,142.5,142.47,4.77317602]
[1764260106389,0.66,142.5,142.45,7.01995018]
[1764260106689,0.66,142.5,142.45,4.77317602]
[1764260106894,12.73506089,142.5,142.45,4.77317602]
[1764260107098,12.73506089,142.5,142.44,4.77317602]
[1764260107299,0.66,142.49,142.45,4.77317602]
[1764260107587,5.43317602,142.49,142.42,7.02141747]
[1764260107796,5.43317602,142.49,142.44,4.77317602]
[1764260107978,0.66,142.48,142.44,4.77317602]
[1764260108174,3.14,142.47,142.38,0.58]
[1764260108382,3.14,142.47,142.39,11.79614111]
[1764260108383,4.77317602,142.44,142.39,11.79614111]
[1764260108582,3.14,142.43,142.39,11.79614111]
[1764260108782,8.57317602,142.43,142.39,7.02296509]
[1764260108999,0.66,142.42,142.39,11.79614111]
[1764260109709,4.77317602,142.41,142.36,11.79762108]
[1764260109998,4.77317602,142.39,142.33,17.56436351]
[1764260110194,3.14,142.38,142.34,7.02543206]
[1764260110403,3.84,142.38,142.34,7.02543206]
[1764260110695,3.84,142.38,142.29,35.33888922]
[1764260110696,4.77317602,142.36,142.3,11.8005829]
[1764260110909,4.77317602,142.34,142.3,7.02740688]
[1764260111073,7.91317602,142.34,142.29,7.2277192]
[1764260111269,5.45317602,142.33,142.29,7.2277192]
[1764260111587,4.77317602,142.31,142.29,0.2]
[1764260111794,3.14,142.3,142.29,0.2]
[1764260111988,3.82,142.3,142.29,0.2]
[1764260112715,8.59317602,142.3,142.29,0.2]
[1764260113067,3.82,142.3,142.29,0.2]
[1764260113687,3.14,142.32,142.29,7.22790076]
[1764260113888,3.82,142.32,142.29,7.22790076]
[1764260114104,3.14,142.32,142.29,7.22789156]
[1764260114268,5.45317602,142.31,142.29,0.2]
[1764260114671,0.68,142.3,142.29,0.2]
[1764260115389,3.14,142.32,142.29,12.00098174]
[1764260115592,0.68,142.31,142.29,7.22780572]
[1764260115795,0.68,142.31,142.29,0.2]
[1764260116185,0.68,142.31,142.29,7.22783792]
[1764260116577,3.14,142.32,142.29,7.22783792]
[1764260116892,3.14,142.32,142.29,29.57076585]
[1764260117191,0.68,142.32,142.29,29.57076585]
[1764260117400,0.68,142.32,142.29,24.79758983]
[1764260117583,0.68,142.32,142.29,29.57076585]
[1764260118198,0.68,142.32,142.29,12.00101394]
[1764260118583,0.68,142.32,142.29,7.22783792]
[1764260119283,0.68,142.32,142.29,12.00101394]
[1764260119683,0.68,142.32,142.29,7.22783792]
[1764260119892,3.82,142.32,142.29,7.22783792]
[1764260120197,3.14,142.31,142.29,7.22783792]
[1764260120407,3.82,142.31,142.29,7.22783792]
[1764260122894,0.68,142.31,142.29,7.22783792]
[1764260123096,3.12,142.32,142.29,7.22783792]
[1764260123402,0.68,142.31,142.29,7.22783792]
[1764260124095,3.12,142.32,142.29,7.22783792]
[1764260124281,3.8,142.32,142.29,7.22783792]
[1764260124989,3.8,142.32,142.29,12.00101394]
[1764260125701,0.68,142.32,142.29,12.00101394]
[1764260128500,0.68,142.32,142.29,7.22783792]
[1764260129824,4.77317602,142.31,142.29,0.2]
[1764260130188,0.68,142.3,142.29,0.2]
[1764260132289,0.68,142.3,142.29,7.22790076]
[1764260132489,5.45317602,142.32,142.29,7.22790076]
[1764260132715,0.68,142.32,142.29,7.22790076]
[1764260133091,0.68,142.34,142.3,4.77317602]
[1764260133296,3.8,142.33,142.31,7.02691307]
[1764260134501,0.68,142.32,142.29,7.22772952]
[1764260135521,0.68,142.32,142.29,24.79748143]
[1764260135818,0.68,142.32,142.29,0.2]
[1764260136023,4.77317602,142.31,142.29,0.2]
[1764260136417,0.68,142.3,142.29,0.2]
[1764260136613,3.8,142.33,142.29,7.2278701]
[1764260136801,0.68,142.32,142.29,7.2278701]
[1764260137123,3.12,142.31,142.29,0.2]
[1764260137299,5.45317602,142.32,142.29,0.2]
[1764260137501,0.68,142.31,142.29,7.22786721]
[1764260137820,3.8,142.31,142.29,7.22786721]
[1764260138014,0.68,142.31,142.29,7.22786721]
[1764260138220,3.8,142.31,142.29,7.22786721]
[1764260139010,0.68,142.3,142.29,7.22786721]
[1764260139414,3.12,142.31,142.29,7.22786721]
[1764260139601,3.8,142.31,142.29,7.22786721]
[1764260140124,3.12,142.31,142.29,7.22786721]
[1764260140512,0.67,142.31,142.29,7.22786721]
[1764260141228,0.67,142.31,142.29,0.2]
[1764260141618,0.67,142.31,142.29,7.22776744]
[1764260142432,0.67,142.34,142.3,0.58]
[1764260142602,0.67,142.34,142.29,12.00094346]
[1764260142603,14.91827877,142.35,142.29,29.57069537]
[1764260142805,0.67,142.33,142.29,30.15069537]
[1764260143218,0.67,142.33,142.29,24.79751935]
[1764260143420,0.67,142.33,142.29,7.22776744]
[1764260143631,0.67,142.33,142.29,7.80776744]
[1764260143840,0.67,142.33,142.29,7.22776744]
[1764260144036,0.67,142.33,142.29,24.79751935]
[1764260144817,0.67,142.33,142.29,7.22776744]
[1764260145728,0.67,142.33,142.29,24.79751935]
[1764260149444,10.78065141,142.33,142.29,7.22776744]
[1764260149823,0.67,142.32,142.29,7.22776744]
[1764260150323,3.7546322,142.32,142.29,7.22776744]
[1764260150540,3.0846322,142.3,142.29,0.2]
[1764260150950,3.7546322,142.3,142.29,0.2]
[1764260151623,12.84890026,142.3,142.23,0.2]
[1764260151941,3.0846322,142.27,142.23,0.2]
[1764260152141,3.12,142.26,142.23,0.2]
[1764260152344,3.79,142.26,142.23,7.2304851]
[1764260152642,0.67,142.3,142.25,3.0846322]
[1764260152854,3.79,142.3,142.26,3.0846322]
[1764260153148,3.79,142.3,142.25,3.0846322]
[1764260153646,3.79,142.3,142.23,59.96197633]
[1764260153828,3.79,142.3,142.25,3.7946322]
[1764260154229,0.67,142.29,142.25,3.7946322]
[1764260154430,0.67,142.29,142.26,7.02938282]
[1764260155338,3.12,142.3,142.27,0.71]
[1764260155743,3.12,142.3,142.27,3.7946322]
[1764260155942,3.12,142.3,142.27,0.71]
[1764260156661,3.12,142.3,142.28,7.02839471]
[1764260157237,3.79,142.3,142.28,7.02839471]
[1764260158560,3.79,142.3,142.27,7.02888873]
[1764260159845,3.79,142.3,142.26,7.02938282]
[1764260160046,3.79,142.3,142.23,35.35432749]
[1764260160047,3.0846322,142.28,142.23,0.2]
[1764260160263,3.0846322,142.27,142.23,7.23063174]
[1764260160443,3.12,142.26,142.23,7.23063174]
[1764260160642,3.79,142.26,142.23,7.23063174]
[1764260162367,0.67,142.29,142.24,0.71]
[1764260162535,3.12,142.28,142.24,0.71]
[1764260162735,3.79,142.28,142.24,0.71]
[1764260163133,0.67,142.27,142.23,24.80779548]
[1764260163365,0.67,142.27,142.23,25.51779548]
[1764260163547,0.67,142.27,142.23,27.89242768]
[1764260163957,3.12,142.28,142.23,27.89242768]
[1764260164146,3.79,142.28,142.23,28.60242768]
[1764260164552,3.7546322,142.27,142.23,24.80779548]
[1764260164757,0.67,142.27,142.23,7.23063174]
[1764260165063,0.67,142.26,142.23,7.23063174]
[1764260170555,6.2046322,142.28,142.23,27.89242768]
[1764260170766,0.7,142.26,142.23,24.80779548]
[1764260171579,0.7,142.26,142.23,7.23063174]
[1764260173571,3.0846322,142.25,142.23,0.2]
[1764260174077,0.7,142.24,142.23,0.2]
[1764260175260,13.9350034,142.24,142.23,0.2]
[1764260175669,23.3404998,142.27,142.23,0.2]
[1764260175983,0.7,142.26,142.23,7.23082182]
[1764260176189,0.7,142.26,142.23,7.91082182]
[1764260176365,0.7,142.26,142.23,7.23082182]
[1764260177180,3.12,142.27,142.24,0.68]
[1764260177588,3.12,142.27,142.24,3.7646322]
[1764260177760,3.12,142.27,142.24,0.68]
[1764260178778,3.12,142.27,142.25,7.02987697]
[1764260181477,3.82,142.27,142.25,7.02987697]
[1764260181789,3.12,142.27,142.25,7.02987697]
[1764260182097,0.7,142.26,142.25,7.02987697]
[1764260182677,0.7,142.26,142.24,7.03019235]
[1764260183294,0.7,142.26,142.23,0.2]
[1764260183486,1.15255193,142.25,142.23,0.2]
[1764260183670,1.85255193,142.26,142.23,0.2]
[1764260183872,0.7,142.25,142.23,0.2]
[1764260184377,0.7,142.25,142.23,7.23077151]
[1764260184608,3.12,142.27,142.23,9.06332344]
[1764260184784,3.12,142.27,142.23,26.64048718]
[1764260185092,3.82,142.27,142.23,25.48793525]
[1764260185294,3.82,142.27,142.23,7.91077151]
[1764260185590,3.82,142.27,142.23,9.06332344]
[1764260185894,3.82,142.27,142.23,26.64048718]
[1764260186277,3.82,142.27,142.24,1.15255193]
[1764260186492,3.82,142.27,142.23,26.64048718]
[1764260186880,3.82,142.27,142.23,25.48793525]
[1764260187205,0.7,142.26,142.23,7.23077151]
[1764260187992,8.88212151,142.26,142.23,0.2]
[1764260188376,0.7,142.25,142.23,7.2307891]
[1764260188779,0.7,142.25,142.23,0.2]
[1764260190511,0.7,142.28,142.24,0.68]
[1764260190682,0.7,142.27,142.23,25.48801517]
[1764260190882,3.82,142.28,142.24,0.68]
[1764260191188,0.7,142.27,142.23,26.6405671]
[1764260192274,0.7,142.27,142.23,7.23085143]
[1764260192476,1.85255193,142.27,142.23,7.23085143]
[1764260192776,0.7,142.27,142.23,7.91085143]
[1764260194083,0.7,142.27,142.23,26.6405671]
[1764260194398,3.12,142.28,142.23,25.9605671]
[1764260196012,8.3214959,142.32,142.26,1.15255193]
[1764260196177,8.3214959,142.32,142.23,24.80801517]
[1764260196178,3.12,142.31,142.25,1.15255193]
[1764260196378,4.27255193,142.31,142.23,24.80801517]
[1764260196617,1.15255193,142.29,142.23,24.80801517]
[1764260196948,1.15255193,142.29,142.23,25.9605671]
[1764260197078,10.24681999,142.3,142.23,25.9605671]
[1764260197278,1.85255193,142.29,142.23,26.6405671]
[1764260197778,0.7,142.28,142.23,26.6405671]
[1764260197978,3.12,142.27,142.23,26.6405671]
[1764260198501,3.82,142.27,142.23,26.6405671]